Cogmind - Beta 12 @@@ ROGUE MODE // 2023.03.10 @ 16:55:15 Player: Red Box Result: Destroyed by H-55 Commando with Gauss Rifle Performance ------------- Evolutions (1) 500 Regions Visited (5) 1000 Robots Destroyed (105) 525 Value Destroyed (2655) 2655 Prototype IDs (11) 220 Alien Tech Used (0) 0 Bonus (508) 508 TOTAL SCORE: 5408 Bonus ------- High Alert Combat Kills 439 Follower Combat Kills 175 Friendly Fire -106 Cogmind --------- Core Integrity 0/400 Matter 290/300 Energy 278/280 System Corruption 1% Temperature Cool (0) Movement Rolling (120) Ox2 Location -9/Recycling Parts ------- > --- POWER (1) -------- Heavy Ion Engine > --- PROPULSION (2) --- Armored Wheel Armored Wheel > --- UTILITY (4) ------ Scrap Engine High-capacity Storage Unit Medium Armor Plating > --- WEAPON (2) ------- Heavy Particle Cannon Heavy Particle Cannon > --- INVENTORY (20) --- Heavy Ion Engine Cooled Ion Engine Cooled Ion Engine Armored Wheel Armored Wheel Armored Wheel Cryofiber Web High-capacity Storage Unit High-capacity Battery (250) Experimental Sensor Array Medium Armor Plating Shield Generator Drone Bay (2/2) Drone Bay (2/2) Light EM Pulse Cannon Rocket Launcher Mini Grenade Launcher Makeshift Axe Peak State ------------ > --- POWER ------------ Heavy Ion Engine > --- PROPULSION ------- Armored Wheel Armored Wheel > --- UTILITY ---------- Scrap Engine High-capacity Storage Unit Medium Armor Plating > --- WEAPON ----------- Heavy Particle Cannon Makeshift Axe > --- INVENTORY -------- Heavy Ion Engine Cooled Ion Engine Cooled Ion Engine Armored Wheel Armored Wheel Armored Wheel Cryofiber Web High-capacity Storage Unit High-capacity Battery Experimental Sensor Array Medium Armor Plating Shield Generator Drone Bay Drone Bay Spread Laser Light EM Pulse Cannon Heavy Particle Cannon Heavy Particle Cannon Improved Light Cannon Mini Grenade Launcher [Rating: 38] Favorites ----------- Power Ion Engine Engine Ion Engine Propulsion Compact Wheel Leg Aluminum Leg Wheel Compact Wheel Flight Unit Cooled VTOL Module Utility High-capacity Storage Unit Device Improved Heat Sink Storage High-capacity Storage Unit Processor Improved Targeting Computer Hackware Hacking Suite Protection Medium Armor Plating Weapon Light EM Pulse Cannon Energy Gun Improved Medium Laser Energy Cannon Light EM Pulse Cannon Ballistic Gun High-powered Shotgun Launcher Mini Grenade Launcher Impact Weapon Mace Slashing Weapon Makeshift Axe Special Melee Weapon Datajack Build | -11 -10 -10 -9 -9 -9 ------- Run | Jun Mat Min Mat Sto Rec Slots Evolved 2 | . . . 2 . . Power . | . . . . . . Propulsion . | . . . . . . Utility 2 | . . . 2 . . Weapon . | . . . . . . Parts Attached 97 | 9 13 . 30 42 3 Power 13 | 1 1 . 4 7 . Engine 13 | 1 1 . 4 7 . Core . | . . . . . . Reactor . | . . . . . . Propulsion 21 | 4 2 . 4 11 . Treads . | . . . . . . Leg 2 | 2 . . . . . Wheel 18 | 2 2 . 4 10 . Hover . | . . . . . . Flight 1 | . . . . 1 . Utility 25 | 2 5 . 9 8 1 Device 10 | 1 2 . 4 2 1 Storage 6 | 1 3 . . 2 . Processor 1 | . . . 1 . . Hackware 1 | . . . 1 . . Protection 7 | . . . 3 4 . Artifact . | . . . . . . Weapon 38 | 2 5 . 13 16 2 Energy Gun 7 | 2 . . 3 2 . Energy Cannon 22 | . 4 . 7 9 2 Ballistic Gun 2 | . . . . 2 . Ballistic Cannon . | . . . . . . Launcher 1 | . . . . 1 . Special Weapon . | . . . . . . Impact Weapon 1 | . 1 . . . . Slashing Weapon 4 | . . . 2 2 . Piercing Weapon . | . . . . . . Special Melee Weapon 1 | . . . 1 . . Unidentified Prototypes 5 | . . . 1 4 . Parts Lost 13 | . 2 . 5 6 . Power 1 | . . . 1 . . Propulsion 6 | . 2 . 2 2 . Utility 3 | . . . 1 2 . Weapon 3 | . . . 1 2 . Highest Loss Streak 2 | . 1 . 2 2 . To Critical Strikes . | . . . . . . Average Slot Usage (%) 98 | . 98 100 98 98 88 Engine 11 | . 14 14 10 10 11 Wheel 23 | . 27 28 21 21 22 Device 11 | . 13 14 11 11 11 Storage 11 | . 14 14 11 11 11 Processor 7 | . . . 11 11 . Hackware 1 | . . . 3 . . Protection 6 | . . . 6 10 11 Energy Gun 4 | . 10 . 6 2 . Energy Cannon 16 | . 16 28 14 13 21 Slashing Weapon 1 | . . . . 3 . Naked Turns . | . . . . . . Heaviest Build 68 | 12 54 54 65 68 68 Greatest Support 32 | 20 26 26 32 32 24 Greatest Overweight (x) 6 | 1 2 2 3 6 2 Average Overweight (x) 1 | . . 2 1 2 2 Largest Inventory Capacity 20 | 8 20 20 20 20 20 Average Capacity 18 | 7 12 20 20 19 20 Most Carried 20 | 8 19 20 20 20 20 Average Carried 17 | 5 11 19 18 18 17 Final Capacity 20 | 8 20 20 20 20 20 Final Carried 20 | 8 19 20 20 20 18 Scrap Engine Consumption 3 | . . . . . 3 Class Distribution -------------------- 100% | Mutant Dominant Class ---------------- Mutant | -10/Materials Mutant | -10/Mines Mutant | -9/Materials Mutant | -9/Storage Mutant | -9/Recycling Resources | -11 -10 -10 -9 -9 -9 ----------- Run | Jun Mat Min Mat Sto Rec Matter Collected 1399 | 290 120 . 250 709 30 Remotely . | . . . . . . Salvage Created 3520 | 144 284 139 1301 1652 . Parts 201 | 10 17 6 86 82 . Haulers Intercepted 8 | . . . 2 6 . Recyclers Shooed 1 | . 1 . . . . Parts Field Recycled . | . . . . . . Retrieved Matter . | . . . . . . Parts Self-Destructed . | . . . . . . Prevented . | . . . . . . Kills | -11 -10 -10 -9 -9 -9 ------- Run | Jun Mat Min Mat Sto Rec Combat Hostiles Destroyed 75 | . 7 6 29 33 . Guns 23 | . 2 . 7 14 . Cannons 39 | . 4 5 14 16 . AOE 10 | . 1 . 6 3 . Classes Destroyed 11 | 2 4 . 2 3 . Worker 3 | . . . . 3 . Builder 2 | . 1 . . 1 . Tunneler 3 | 3 . . . . . Hauler 8 | . . . 2 6 . Recycler 3 | 1 . . 1 1 . Operator 1 | . . . . 1 . Watcher 9 | . 3 . 4 2 . Swarmer 24 | . 3 5 12 4 . Grunt 29 | . 4 1 9 15 . Protector 2 | . . . . 2 . Sentry 20 | . . . 8 12 . Thug 1 | . . . 1 . . Best Kill Streak 7 | 3 4 3 6 7 . Combat Bots Only 7 | . 3 3 6 7 . Max Kills in Single Turn 3 | 1 1 1 3 3 . Gunslinging . | . . . . . . Exploded 3 | . 1 . 3 3 . Melee . | . . . . . . Uniques/NPCs Destroyed . | . . . . . . Combat | -11 -10 -10 -9 -9 -9 -------- Run | Jun Mat Min Mat Sto Rec Damage Taken 2316 | . 232 120 891 1051 22 Core 484 | . 47 27 164 224 22 Absorbed by Shields . | . . . . . . Regen/Repaired (Parts) 238 | . 40 . 35 163 . Core Remaining (%) 85 | 100 . 70 . . . Volleys Fired 213 | 8 28 12 70 93 2 Largest 2 | 2 2 2 2 2 1 Hottest 150 | 90 112 112 136 150 75 Shots Fired 410 | 16 54 24 137 176 3 Gun 174 | 16 38 . 38 82 . Cannon 234 | . 16 24 99 92 3 Launcher 2 | . . . . 2 . Special . | . . . . . . Kinetic 47 | . . . . 47 . Thermal 260 | 16 38 . 96 107 3 Explosive 2 | . . . . 2 . Electromagnetic 101 | . 16 24 41 20 . Robot Hit Streak 16 | 4 7 14 16 16 . Robot Miss Streak 6 | 1 6 2 3 5 . Penetration Max . | . . . . . . Secondary Targets 2 | . 1 . . 1 . Max Gunslinging Chain 1 | . 1 . . 1 . Shots Hit Robots 293 | 9 31 17 98 138 . Core Hits 159 | 5 13 6 45 90 . Critical Kills 1 | . . . . 1 . Critical Parts Destroyed . | . . . . . . Critical Strikes 8 | 1 3 . 3 1 . Burn 5 | 1 2 . 2 . . Destroy 1 | . . . . 1 . Corrupt 2 | . 1 . 1 . . Melee Attacks 30 | . 4 . 5 21 . Impact 4 | . 4 . . . . Slashing 26 | . . . 5 21 . Piercing . | . . . . . . Sneak Attacks 4 | . . . . 4 . Combat Hostiles . | . . . . . . Follow-up Attacks . | . . . . . . Damage Inflicted 7057 | 107 686 443 2280 3541 . Guns 2283 | 107 282 . 570 1324 . Cannons 3632 | . 203 403 1528 1498 . Explosions 669 | . 201 40 182 246 . Melee 473 | . . . . 473 . Ramming . | . . . . . . Kinetic 818 | . . . . 818 . Thermal 3651 | 107 304 40 1599 1601 . Explosive 425 | . 179 . . 246 . Electromagnetic 1690 | . 203 403 681 403 . Impact . | . . . . . . Slashing 473 | . . . . 473 . Piercing . | . . . . . . Highest Corruption 1 | . . . 1 1 1 Average Corruption 1 | . . . 1 1 1 Corruption Purged . | . . . . . . Corruption Blocked . | . . . . . . Effects 34 | . . . 3 28 3 Message Errors 8 | . . . . 8 . Matter Fused 11 | . . . . 10 1 Heat Flow Errors 3 | . . . 1 1 1 Energy Discharges 4 | . . . . 4 . Parts Fused 1 | . . . . 1 . Data Loss (minor) 3 | . . . 1 2 . Data Loss (major) 2 | . . . 1 1 . Misfires 2 | . . . . 1 1 Overload Shots . | . . . . . . Overflow Damage 230 | . 74 5 56 95 . Projectiles 29 | . . 5 24 . . Explosions 137 | . 74 . 32 31 . Melee 64 | . . . . 64 . Knockbacks . | . . . . . . Impact . | . . . . . . Kinetic . | . . . . . . Secondary . | . . . . . . Self-Inflicted Damage 26 | . . . 21 5 . Shots 2 | . . . 1 1 . Rammed . | . . . . . . Targets Rammed . | . . . . . . Kicked . | . . . . . . Crushed . | . . . . . . Highest Temperature 266 | 150 138 36 189 266 102 Average Temperature 49 | 55 52 13 47 57 36 Received Heat Transfer 930 | . 132 27 342 429 . Siege Activations . | . . . . . . Robots Corrupted 2 | . . 1 1 . . Combat Hostiles 2 | . . 1 1 . . Parts Fried 6 | . . 3 1 2 . Impact Corruptions . | . . . . . . Robots Melted 1 | . . . 1 . . Combat Hostiles 1 | . . . 1 . . Parts Melted 10 | . 2 . 6 2 . Heat Transferred 6417 | 347 892 50 2971 2157 . Parts Sabotaged . | . . . . . . Parts Stolen . | . . . . . . Parts Stripped . | . . . . . . Power Chain Reactions 5 | . 1 1 3 . . Missiles Intercepted . | . . . . . . Alert | -11 -10 -10 -9 -9 -9 ------- Run | Jun Mat Min Mat Sto Rec Peak Influence 869 | 20 284 204 576 869 272 Initial 243 | . 13 63 31 243 174 Average 362 | 6 135 95 376 542 225 Maximum Alert Level 3 | . 1 1 2 3 1 Low Security (%) 21 | 100 70 83 2 . 20 Level 1 27 | . 29 16 49 5 79 Level 2 45 | . . . 47 80 . Level 3 4 | . . . . 13 . Level 4 . | . . . . . . Level 5 . | . . . . . . High Security . | . . . . . . Max Security . | . . . . . . Squads Dispatched 11 | . 1 . 3 7 . Investigation 4 | . 1 . 1 2 . Extermination . | . . . . . . Reinforcement 1 | . . . 1 . . Assault 3 | . . . 1 2 . Garrison 3 | . . . . 3 . Intercept . | . . . . . . Searches Triggered . | . . . . . . Construction Impeded . | . . . . . . Haulers Reinforced . | . . . . . . Active Scanning Responses . | . . . . . . Cargo Convoy Interrupts . | . . . . . . Stealth | -11 -10 -10 -9 -9 -9 --------- Run | Jun Mat Min Mat Sto Rec Distress Signals 10 | . . . 7 3 . Communications Jammed . | . . . . . . Distress Signals . | . . . . . . Times Spotted 119 | . 14 9 50 44 2 Peak Tracking Total 11 | . 3 3 5 11 . Tactical Retreats 6 | . 1 1 3 1 . Traps | -11 -10 -10 -9 -9 -9 ------- Run | Jun Mat Min Mat Sto Rec Traps Triggered 7 | . . . 1 6 . Indirectly . | . . . . . . Trap Hack Attempts 6 | . . . 6 . . Triggered . | . . . . . . Disarmed . | . . . . . . Reprogrammed 1 | . . . 1 . . Reused . | . . . . . . Traps Extracted . | . . . . . . Installed . | . . . . . . Triggered . | . . . . . . Machines | -11 -10 -10 -9 -9 -9 ---------- Run | Jun Mat Min Mat Sto Rec Machines Disabled 16 | . 7 1 4 4 . Max in Single Turn 2 | . 2 . 1 1 . Machines Repaired . | . . . . . . Machines Sabotaged . | . . . . . . Overloaded Fab Kills . | . . . . . . Hacking | -11 -10 -10 -9 -9 -9 --------- Run | Jun Mat Min Mat Sto Rec Machines Accessed 46 | . 9 1 15 16 5 Terminals 31 | . 6 1 10 13 1 Fabricators . | . . . . . . Repair Stations 4 | . 1 . 2 1 . Recycling Units 9 | . 2 . 1 2 4 Scanalyzers 2 | . . . 2 . . Garrison Access . | . . . . . . Total Hacks 135 | . 32 3 49 40 11 Successful 82 | . 21 1 27 22 11 Failed 53 | . 11 2 22 18 . Catastrophic 5 | . 1 . . 4 . Database Lockouts . | . . . . . . Manual 64 | . 23 3 17 15 6 Terminals 90 | . 21 3 32 32 2 Fabricators . | . . . . . . Repair Stations 14 | . 4 . 6 4 . Recycling Units 24 | . 7 . 4 4 9 Scanalyzers 7 | . . . 7 . . Garrison Access . | . . . . . . Terminal Hacks 33 | . 10 1 11 10 1 Part Schematic 1 | . . 1 . . . Robot Schematic 1 | . . . . 1 . Robot Analysis 10 | . 6 . 3 1 . Prototype ID Bank 3 | . . . 2 . 1 Open Door 4 | . . . . 4 . Branch Access Points 1 | . . . 1 . . Terminal Index 1 | . 1 . . . . Alert Level 1 | . . . 1 . . Unreport Threat 2 | . . . . 2 . Locate Traps 5 | . 3 . . 2 . Security Status 1 | . . . 1 . . Recall Reinforcements 1 | . . . 1 . . Registered Components 1 | . . . 1 . . Zone Layout 1 | . . . 1 . . Fabricator Hacks . | . . . . . . Repair Station Hacks 12 | . 4 . 4 4 . Scan Component 6 | . 2 . 2 2 . Repair 6 | . 2 . 2 2 . Recycling Unit Hacks 8 | . 1 . 1 2 4 Report Inventory 1 | . 1 . . . . Retrieve Components 7 | . . . 1 2 4 Scanalyzer 2 | . . . 2 . . Insert Component 2 | . . . 2 . . Garrison Access Hacks . | . . . . . . Unauthorized Hacks 27 | . 6 . 9 6 6 Terminals 17 | . 3 . 8 5 1 Track 5 | . . . 4 1 . Assimilate 1 | . 1 . . . . Botnet 8 | . 1 . 3 3 1 Operators 3 | . 1 . 1 1 . Fabricators . | . . . . . . Repair Stations . | . . . . . . Recycling Units 10 | . 3 . 1 1 5 Reject 3 | . 1 . 1 . 1 Mask 3 | . 1 . . 1 1 Tunnel 4 | . 1 . . . 3 Scanalyzers . | . . . . . . Garrison Access . | . . . . . . Data Cores Recovered 1 | . . . . 1 . Used . | . . . . . . Hacking Detections 35 | . 7 1 14 11 2 Full Trace Events 4 | . . . 3 1 . Feedback Events 1 | . . . 1 . . Corruption 1 | . . . 1 . . Feedback Blocked . | . . . . . . Robot Schematics Acquired 1 | . . . . 1 . Robots Built . | . . . . . . Authchips . | . . . . . . Time . | . . . . . . Total Robot Build Rating . | . . . . . . Part Schematics Acquired 1 | . . 1 . . . Parts Built . | . . . . . . Authchips . | . . . . . . Time . | . . . . . . Total Part Build Rating . | . . . . . . Parts Repaired 6 | . 2 . 2 2 . Time 249 | . 85 . 94 70 . Parts Recycled . | . . . . . . Recycled Matter . | . . . . . . Retrieved Matter . | . . . . . . Retrieved Components 31 | . . . 10 13 8 Parts Scanalyzed 1 | . . . 1 . . Part Schematics Acquired . | . . . . . . Parts Damaged . | . . . . . . Bothacking | -11 -10 -10 -9 -9 -9 ------------ Run | Jun Mat Min Mat Sto Rec Used RIF Installer . | . . . . . . Robots Hacked . | . . . . . . Non-combat . | . . . . . . Combat . | . . . . . . Robot Hacks Applied . | . . . . . . Relay Couplers Released . | . . . . . . Fabnet Peak Effective % . | . . . . . . Robots Rewired . | . . . . . . Allies Hacked . | . . . . . . Hacks Repelled . | . . . . . . Allies | -11 -10 -10 -9 -9 -9 -------- Run | Jun Mat Min Mat Sto Rec Total Allies 5 | . 1 2 . 2 . Largest Group 3 | . 1 3 2 2 . Highest-Rated Group 62 | . 10 61 41 62 . Highest-Rated Ally 31 | . 10 31 31 31 . Total Orders 5 | . 2 2 1 . . STAY 2 | . 1 . 1 . . ROAM 1 | . . 1 . . . FOLLOW 2 | . 1 1 . . . Ally Attacks 30 | . . 9 7 14 . Total Damage 436 | . . 83 104 249 . Kills 7 | . . 2 1 4 . Allies Corrupted . | . . . . . . Allies Melted . | . . . . . . Intel | -11 -10 -10 -9 -9 -9 ------- Run | Jun Mat Min Mat Sto Rec Robot Analysis Total 10 | . 6 . 3 1 . Derelict Logs Recovered 2 | . . 2 . . . Drone Launches . | . . . . . . Drone Recoveries . | . . . . . . Exploration | -11 -10 -10 -9 -9 -9 ------------- Run | Jun Mat Min Mat Sto Rec Turns Passed 7552 | 122 1047 797 2638 2714 234 Spaces Moved 4715 | 74 823 606 1383 1645 184 Core 5 | 5 . . . . . Treads . | . . . . . . Legs 39 | 39 . . . . . Wheels 4671 | 30 823 606 1383 1645 184 Hover . | . . . . . . Flight . | . . . . . . Fastest Speed 50 | 50 80 120 115 90 120 Average Speed 114 | 99 94 120 115 120 120 Slowest Speed 170 | 120 120 120 145 170 120 Overloaded Moves . | . . . . . . Propulsion Burnouts . | . . . . . . Robots Hopped . | . . . . . . Cave-ins Triggered . | . . . . . . Exploration Rate (%) 72 | 4 98 99 96 93 43 Regions Visited 5 Branch Regions 3 Pre-discovered Areas 4 | . 1 . . . 3 Known Exits Taken 1 | . . . 1 . . Unknown Exits Taken 4 | 1 1 1 . 1 . Scrap Searched 1 | . . 1 . . . Spaces Dug 15 | . 2 . 5 6 2 Terrain Destroyed 148 | . 88 5 15 38 2 Melee 8 | . 2 . 5 1 . Projectile 22 | . . . . 20 2 AOE 118 | . 86 5 10 17 . Terrain Rammed . | . . . . . . Walls Destroyed . | . . . . . . Machines Disabled . | . . . . . . Actions | -11 -10 -10 -9 -9 -9 --------- Run | Jun Mat Min Mat Sto Rec Total 6448 | 103 1032 653 2280 2182 198 Wait 1225 | . 132 29 737 325 2 Move 4710 | 73 822 605 1382 1644 184 Hop . | . . . . . . Pick Up 88 | 10 21 4 26 26 1 Fast Attach 35 | 8 3 . 3 20 1 Attach 26 | 1 3 . 13 7 2 Detach 8 | . . . 2 3 3 Swap 36 | . 7 . 14 15 . Drop 71 | 3 12 3 22 28 3 Fire 213 | 8 28 12 70 93 2 Melee 30 | . 4 . 5 21 . Ram . | . . . . . . Kick . | . . . . . . Crush . | . . . . . . Escape Stasis . | . . . . . . Rewire . | . . . . . . Trap 6 | . . . 6 . . Miscellaneous . | . . . . . . Route ------- -11/Junkyard -10/Materials (discovered 5 exits: *Mat x3 / *Min x2) -10/Mines (discovered 3 exits: *Mat x2 / [*Exi]) -9/Materials (discovered 7 exits: [*Mat x3] / *Min x2 / *Sto x2) -9/Storage (discovered 2 exits: [*Mat] / *Rec) -9/Recycling History --------- Turn | Location | Event 30 | -11/Junkyard | Discovered new exit (range 13) 123 | -11/Junkyard | Entered Materials 194 | -10/Materials | Discovered new exit (range 12) 215 | -10/Materials | Discovered new exit (range 15) 311 | -10/Materials | Build established: Mutant 552 | -10/Materials | Discovered new exit (range 15) 717 | -10/Materials | Discovered new exit (range 14) 799 | -10/Materials | Discovered new exit (range 5) 908 | -10/Materials | Repaired Lgt. EM Pulse Cannon 962 | -10/Materials | Repaired Corrupted Imp. Heat Sink 1170 | -10/Materials | Entered Mines 1170 | -10/Mines | Accompanied by 1 ally 1210 | -10/Mines | Found a damaged Exp. Sensor Array with a note attached 1219 | -10/Mines | Found Prototype Device 1620 | -10/Mines | Deemed a non-threat by the Exiles lab entrance 1620 | -10/Mines | Discovered new exit (range 5) 1657 | -10/Mines | Learned Materials terminal intel 1742 | -10/Mines | Discovered new exit (range 11) 1787 | -10/Mines | Discovered new exit (range 16) 1893 | -10/Mines | A weapon hastily lodged in a ceiling crevice suddenly fell to the ground 1967 | -10/Mines | Entered Materials 1967 | -9/Materials | Accompanied by 2 allies 1967 | -9/Materials | Evolved 2 slots: Utility x2 1968 | -9/Materials | Identified exit to Storage 1969 | -9/Materials | Loaded intel: 12 terminal locations 1972 | -9/Materials | Led the pair of lost Derelicts to an unsafe place 2007 | -9/Materials | Identified exit to Mines 3667 | -9/Materials | Discovered new exit (range 11) 3816 | -9/Materials | Identified Exp. Sensor Array 3968 | -9/Materials | Repaired Broken Exp. Sensor Array 4063 | -9/Materials | Discovered new exit (range 14) 4265 | -9/Materials | Discovered new exit (range 16) 4367 | -9/Materials | First assault squad dispatched 4453 | -9/Materials | Repaired Com. Wheel 4605 | -9/Materials | Entered Storage 4624 | -9/Storage | Met a pair of Derelict thieves 4779 | -9/Storage | Destroyed 7 combat bots 4827 | -9/Storage | Core integrity fell below 50% 5076 | -9/Storage | Discovered new exit (range 16) 5267 | -9/Storage | Garrison activated, responded to threat 5276 | -9/Storage | Core integrity fell below 20% 6217 | -9/Storage | Repaired Arm. Wheel 6256 | -9/Storage | Repaired Hvy. Particle Cannon 7314 | -9/Storage | Used back door to open Recycling access 7314 | -9/Storage | Discovered new exit (range 5) 7319 | -9/Storage | Entered Recycling 7320 | -9/Recycling | Found Scrap Engine 7553 | -9/Recycling | Destroyed by H-55 Commando with Gauss Rifle Last Messages --------------- >>Retrieve(Components) Retrieving 2 components... VTOL Module Particle Cannon >>Force(Tunnel) DISCOVERED[-5/Hub_04(d)] 07473_ U-05 Engineer builds a Wall. 07473_ Connecting with Recycling Unit... >>Retrieve(Components) Retrieving 2 components... Rocket Launcher Hvy. EM Pulse Gun >>Force(Tunnel) DISCOVERED[-1/Command] 07474_ Acquired Rocket Launcher. 07496_ System corrupted: Heat flow error (+121). 07528_ System corrupted: Matter fused (-10). 07553_ L-31 Rogue springs to life. 07553_ H-55 Commando springs to life. 07553_ Penetrated by Slug. Map ----- +----------------------------------------------------+ | | | ?????????????????????????????????????? | | ?????????????????????????????????????? | | ?????????????????????????????????????? | | ?????????????????????????????????????? | | ?????????????????????????????????????? | | ?????????????????????????????????????? | | ?????????????????????????????????????? | | ?????????????????????????????????????? | | ?????????????????????????????????????? | | ?????????????????????????????????????? | | ?????????????????????????????????????? | | ????????????#########????????????????? | | ???????????# bi [ ??????????????? | | ???????????# kY/ #????????????? | | ???????????# tu g] g#????????????? | | ???????????#! [ #????????????? | | ???????????# ] #????????????? | | ???????????# ds #????????????? | | ???????????+ g ]! p #????????????? | | ???????????#h % g ?????????????? | | ???????????#! t |Y ???????????????? | | ???????????# ?????????????????? | | ???????????# ???????????????????? | | ???????????# lr ?????????????????????? | | ????????????#@#??????????????????????? | | ???????????## #??????????????????????? | | ??##########; #??????????????????????? | | ??# # #??????????????????????? | | ??# # #??????????????????????? | | ??# # #??????????????????????? | | ??# """ """ # #??????????????????????? | | ??# """ """ # #??????????????????????? | | ??# """ """ # #############/?????????? | | ??# # ????????? | | ??# """ """ / ????????? | | ??# """ """ # ????????? | | ??# """ """ # ## ####"Y"#??????????? | | ??# # #????????????????????? | | ??# """ """ # #?????????####???????? | | ??# """ """ # #??????? !??????? | | ??# """ """ # #????? ! = ??????? | | ??# # #??? ?????? | | ??# # ## ! ! ?????? | | ??##+#####+## +! = ?????? | | ???# ##### ## [ / ?????? | | ???# #??? ?????? | | ???# ######### ##????? =??????? | | ???# #???????# #????????###+####?????? | | ???# #???????# #?????????# ?????? | +----------------------------------------------------+ Best States ------------- Heat Dissipation 42 Energy Generation 18 Energy Capacity 280 Matter Stores 300 Matter Capacity 300 Sight Range 16 Terrain Scan Range 16 Terrain Scan Density 10 Armor Coverage 225 Evasion (%) 55 Targeting Accuracy 6 Offensive Hacking 10 Item Schematics ----------------- Hcp. Storage Unit | -10/Mines | Hacked Robot Schematics ------------------ S-10 Pest | -9/Storage | Hacked Fabricated ------------ Nothing Alien Tech Used ----------------- None Achievements -------------- None Challenges ------------ None Game ------ Seed CorruptionTiamatAirjet Manual? 0 Play Time 01:00:37 Cumulative 557.7 hours Start 2023.03.10 @ 15:49:30 End 2023.03.10 @ 16:55:15 Sessions 1 Manual Loads 0 Difficulty Rogue Special Mode None Game No. 395 Rogue 395 Adventurer 0 Explorer 0 Win Type - Total 1 Types 1/0/0/0/0/0/0/0/0 Lore% 70 Gallery% 78 Achievement% 58 Wizard Run 0 Options --------- ASCII 0 Keyboard 0 Movement Mouse Keybinds 0 Fullscreen 1 Font 16/SmallcapsGlow Map View 75x55 Tactical HUD 1 Map Filters NONE Filters NONE Steam 1 RUN: 17c13cdf-851f-4920-bab0-af0b225c1a86